bitfinex-derivatives/quotes_ETHF0:USTF0_20260116
["timestamp","ask_amount","ask_price","bid_price","bid_amount"]
[1768574476312,0.50577397,3299.4,3297.2,0.15169]
[1768574476507,0.50577397,3299.4,3297.1,40.8]
[1768574476508,0.15159,3299.4,3297.4,0.4895002]
[1768574476703,0.50577397,3299.3,3297.4,0.4895002]
[1768574477210,0.50577397,3299.3,3297.4,0.49259938]
[1768574477412,0.50577397,3299.3,3297.4,0.00309918]
[1768574477614,0.50577397,3299.1,3297.4,0.00309918]
[1768574477908,0.65738397,3299.1,3297.4,0.00309918]
[1768574478108,0.50577397,3298.9,3297.4,0.00309918]
[1768574479316,0.50577397,3298.7,3296.3,0.15173]
[1768574479510,0.50577397,3298.5,3296.3,0.15173]
[1768574479710,0.50577397,3298.5,3296.5,0.15172]
[1768574480117,0.50577397,3299.0,3296.8,0.4895002]
[1768574480316,0.50801117,3299.0,3296.9,0.1517]
[1768574482007,0.0022372,3299.0,3296.8,0.49209398]
[1768574482309,0.0022372,3299.0,3297.5,0.49488966]
[1768574484213,0.0022372,3299.0,3297.8,0.15166]
[1768574484406,0.0022372,3299.0,3297.5,0.49488966]
[1768574484714,0.0022372,3299.0,3297.2,3.18469]
[1768574484914,0.0022372,3299.0,3297.2,0.15169]
[1768574487609,0.51695456,3299.0,3297.2,0.15169]
[1768574488716,0.52907794,3298.8,3296.8,0.00259378]
[1768574488915,1.43916956,3298.7,3296.8,0.00259378]
[1768574489116,0.52907794,3298.7,3296.8,0.00259378]
[1768574489810,0.0022372,3299.0,3297.0,0.68208323]
[1768574490014,0.91046707,3298.9,3297.2,0.53038323]
[1768574490318,0.0022372,3299.0,3297.2,0.53038323]
[1768574491324,0.91278106,3298.9,3297.2,0.53038323]
[1768574491525,0.0022372,3299.0,3297.7,0.15167]
[1768574491824,0.15157,3300.0,3298.0,0.53038323]
[1768574492125,0.91309848,3299.9,3298.0,0.53038323]
[1768574492323,0.91309848,3299.8,3298.0,0.53038323]
[1768574492519,0.91309848,3299.7,3298.0,0.53038323]
[1768574492725,0.91309848,3299.6,3298.1,0.15165]
[1768574492922,0.91309848,3299.5,3298.1,0.68203323]
[1768574493127,0.00274151,3299.6,3298.2,0.53038323]
[1768574493422,0.00274151,3299.6,3298.4,0.68201323]
[1768574494218,0.68060794,3300.7,3298.6,0.53038323]
[1768574494426,0.91563474,3300.6,3298.6,0.68201323]
[1768574494623,0.52907794,3301.2,3299.1,0.53038323]
[1768574494822,0.9158293,3301.1,3299.1,0.53038323]
[1768574495126,1.44490724,3301.0,3299.2,0.1516]
[1768574495326,0.9158293,3300.9,3299.2,0.15500886]
[1768574495526,0.52907794,3301.0,3299.2,0.15500886]
[1768574495527,0.9158293,3300.8,3299.2,0.15500886]
[1768574495717,0.9158293,3300.7,3299.3,0.53038323]
[1768574495919,0.00334181,3301.1,3299.3,0.53038323]
[1768574496118,0.91564763,3301.0,3299.3,0.53038323]
[1768574496324,0.00334181,3301.1,3299.6,0.53038323]
[1768574497727,0.52907794,3302.3,3300.2,0.53038323]
[1768574497929,0.91430812,3302.2,3300.3,0.53038323]
[1768574498131,0.91430812,3302.1,3300.3,0.53038323]
[1768574498333,3.18444,3302.8,3300.3,0.68193323]
[1768574498632,0.91339659,3302.7,3300.4,0.53038323]
[1768574498835,1.44247453,3302.6,3300.4,0.53038323]
[1768574499025,0.91339659,3302.5,3300.4,0.53038323]
[1768574499226,0.91339659,3302.5,3300.5,0.53038323]
[1768574499621,0.91339659,3302.5,3300.6,40.8]
[1768574499930,0.52907794,3302.4,3300.6,40.8]
[1768574500120,0.52907794,3302.2,3299.9,0.68194323]
[1768574500321,1.44247453,3302.1,3299.9,0.68194323]
[1768574500522,0.52907794,3302.1,3299.9,0.68194323]
[1768574500724,0.52907794,3302.1,3300.1,0.53038323]
[1768574501039,0.52907794,3302.6,3300.2,0.53038323]
[1768574501231,0.9118442,3302.5,3300.2,0.53038323]
[1768574501528,0.52907794,3302.6,3300.4,0.68192323]
[1768574501929,0.52907794,3302.6,3300.6,0.53038323]
[1768574503129,0.52907794,3302.6,3300.5,0.15154]
[1768574503323,0.52907794,3302.4,3300.5,0.15154]
[1768574503524,0.52907794,3302.4,3300.5,0.68192323]
[1768574503725,0.52907794,3302.6,3300.5,0.68192323]
[1768574503920,0.52907794,3302.3,3300.0,40.8]
[1768574504130,0.52907794,3302.0,3299.8,0.53038323]
[1768574504928,0.52907794,3301.9,3299.2,0.53379209]
[1768574505129,0.1515,3301.5,3299.3,0.53038323]
[1768574505330,0.1515,3301.5,3299.4,0.53038323]
[1768574505831,0.52907794,3301.4,3299.4,0.53038323]
[1768574506429,0.52907794,3301.0,3299.2,0.00340886]
[1768574506727,0.68059794,3301.0,3299.2,0.00340886]
[1768574506927,0.15149,3301.7,3299.6,0.53038323]
[1768574507126,0.52907794,3302.1,3300.0,0.53038323]
[1768574507324,0.52907794,3302.1,3300.1,0.53038323]
[1768574507526,0.53138532,3302.7,3300.5,0.68192323]
[1768574507832,0.9095194,3302.6,3300.5,0.68192323]
[1768574508025,0.68282532,3302.7,3300.5,0.68192323]
[1768574508226,1.06098073,3302.6,3300.5,0.68192323]
[1768574508525,0.52907794,3302.2,3300.0,43.832]
[1768574508929,0.52907794,3302.2,3300.0,40.8]
[1768574509133,0.15147,3302.1,3300.0,44.36138323]
[1768574509336,0.00230738,3302.7,3300.4,0.53038323]
[1768574509525,1.06106348,3302.6,3300.4,0.53038323]
[1768574509832,0.15145,3302.6,3300.4,0.53038323]
[1768574510033,0.15145,3302.6,3300.4,0.68192323]
[1768574510235,0.15145,3302.6,3300.5,0.53038323]
[1768574510736,0.15145,3302.6,3300.5,0.68192323]
[1768574511433,0.00230738,3302.7,3300.8,0.50018536]
[1768574511834,0.00230738,3302.7,3301.3,0.50018536]
[1768574512133,0.00230738,3302.7,3301.5,0.50018536]
[1768574512523,0.15139,3303.8,3301.5,0.50018536]
[1768574512728,0.90998238,3303.7,3301.7,0.50018536]
[1768574512923,0.15139,3303.8,3301.8,0.50018536]
[1768574513125,0.49795063,3304.1,3302.0,0.50018536]
[1768574513642,0.50150697,3304.1,3302.0,0.50377918]
[1768574514333,0.64933063,3303.9,3302.0,0.00359382]
[1768574514536,0.49795063,3303.8,3302.0,0.00359382]
[1768574515130,0.15139,3303.7,3302.0,0.00359382]
[1768574515439,0.15142,3303.1,3302.0,0.00359382]
[1768574516038,0.49795063,3302.9,3300.6,3.031]
[1768574516230,0.49795063,3302.9,3300.3,0.50018536]
[1768574516231,0.15145,3302.5,3300.3,0.50018536]
[1768574516431,0.15145,3302.5,3300.4,0.50018536]
[1768574516627,0.49795063,3302.9,3300.7,0.50018536]
[1768574517027,0.15142,3303.2,3300.9,0.15152]
[1768574517240,0.15142,3303.2,3301.1,0.50018536]
[1768574517644,0.15142,3303.2,3301.2,0.50018536]
[1768574517940,0.49795063,3303.5,3301.3,0.50018536]
[1768574518141,0.90968865,3303.4,3301.3,0.50018536]
[1768574518336,0.49795063,3303.5,3301.5,0.50018536]
[1768574518636,0.1514,3303.6,3301.5,0.50018536]
[1768574519340,0.49795063,3303.3,3301.4,3.03]
[1768574519530,0.49795063,3303.3,3301.0,0.15152]
[1768574519725,0.49795063,3303.3,3301.1,3.03]
[1768574519938,0.49795063,3303.3,3301.1,3.53018536]
[1768574520434,0.15142,3303.2,3301.1,0.50018536]
[1768574520638,1.4100842,3303.1,3301.1,0.50018536]
[1768574520836,0.49795063,3303.1,3301.1,0.50018536]
[1768574521339,0.15142,3303.2,3301.4,0.50018536]
[1768574521536,0.49795063,3303.8,3301.4,0.50018536]
[1768574521737,0.91344049,3303.7,3301.7,0.65167536]
[1768574521933,0.49795063,3303.5,3301.1,0.65169536]
[1768574522138,1.56280112,3303.4,3301.2,0.15151]
[1768574522330,0.64937063,3303.1,3301.1,0.50018536]
[1768574522531,0.15142,3303.1,3301.2,0.50018536]
[1768574522937,0.15142,3303.1,3301.2,0.65169536]
[1768574523133,0.49795063,3303.7,3301.6,0.65167536]
[1768574523442,0.91411476,3303.6,3301.7,0.50018536]
[1768574523641,0.91411476,3303.5,3301.8,0.50018536]
[1768574523845,0.91411476,3303.4,3301.7,0.15148]
[1768574524044,0.91411476,3303.3,3301.7,0.15148]
[1768574524340,0.91546513,3303.2,3301.3,3.03]
[1768574524531,0.91546513,3303.1,3301.2,0.50018536]
[1768574524733,0.49795063,3302.9,3300.6,0.50018536]
[1768574524933,0.15145,3302.4,3300.6,0.50018536]
[1768574525144,0.91546513,3302.3,3300.6,0.50018536]
[1768574525338,2.69537919,3303.3,3300.9,0.15152]
[1768574525339,2.30566035,3303.1,3300.9,0.15152]
[1768574525644,0.91574835,3303.0,3301.1,0.50018536]
[1768574525935,0.91574835,3302.9,3301.1,0.50018536]
[1768574526126,0.91574835,3302.8,3301.1,0.50018536]
[1768574526331,0.91574835,3302.7,3301.1,0.50018536]
[1768574526533,0.91574835,3302.6,3300.7,0.00381875]
[1768574526746,0.91574835,3302.5,3300.7,0.00381875]
[1768574527043,0.91574835,3302.4,3300.7,0.00381875]
[1768574527244,0.49795063,3302.8,3300.7,0.00381875]
[1768574527437,0.91640672,3302.7,3300.7,0.00381875]
[1768574527642,1.56579735,3302.6,3300.7,0.00381875]
[1768574527837,0.91640672,3302.5,3300.7,0.00381875]
[1768574528038,0.91640672,3302.4,3300.7,0.00381875]
[1768574528241,1.41435735,3302.3,3300.7,0.00381875]
[1768574528542,13.022889,3305.9,3299.8,3.03]
[1768574528543,0.49795063,3301.7,3299.8,3.03]
[1768574528735,0.91640672,3301.6,3299.5,0.15158]
[1768574528941,0.91640672,3301.5,3299.5,0.15158]
[1768574529142,0.91640672,3301.4,3299.5,0.15158]
[1768574529339,0.91640672,3301.3,3299.5,0.15158]
[1768574529547,0.91640672,3301.2,3299.6,0.50018536]
[1768574529740,0.65260684,3301.7,3299.6,0.50018536]
[1768574529935,0.9156734,3301.6,3299.6,0.50018536]
[1768574530135,0.9156734,3301.5,3299.6,0.50018536]
[1768574530337,0.9156734,3301.4,3299.6,0.50018536]
[1768574530533,0.9156734,3301.3,3299.5,0.15509547]
[1768574530747,0.9156734,3301.2,3299.5,0.15509547]
[1768574530943,0.9156734,3301.1,3299.5,0.15509547]
[1768574531143,0.49795063,3301.6,3299.5,0.15509547]
[1768574531337,1.41331416,3301.5,3299.5,0.15509547]
[1768574531537,0.91536353,3301.4,3299.5,0.15509547]
[1768574531732,0.91536353,3301.3,3299.5,0.15509547]
[1768574531940,0.91536353,3301.2,3299.5,0.15509547]
[1768574532145,0.91536353,3301.1,3299.5,0.00351547]
[1768574532347,0.64945063,3301.4,3299.5,0.00351547]
[1768574532542,0.64946063,3301.2,3299.5,0.00351547]
[1768574532742,0.49795063,3301.0,3299.5,0.00351547]
[1768574532942,1.41297247,3300.9,3299.5,0.00351547]
[1768574533143,0.91502184,3300.8,3299.5,0.00351547]
[1768574533347,0.91502184,3300.7,3299.5,0.00351547]
[1768574533546,0.91502184,3300.6,3299.5,0.00351547]
[1768574533741,0.91431921,3300.5,3299.5,0.00351547]
[1768574533942,0.49795063,3300.8,3299.5,0.00351547]
[1768574534236,0.49795063,3300.6,3299.5,0.00351547]
[1768574534442,0.49795063,3300.4,3298.1,0.15165]
[1768574534642,0.49795063,3300.2,3298.1,0.15165]
[1768574534850,0.91431627,3300.1,3298.1,0.15165]
[1768574535052,0.49795063,3300.2,3298.1,0.15165]
[1768574535249,1.4110684,3300.1,3298.1,0.15165]
[1768574535451,0.49795063,3300.1,3298.1,0.15557066]
[1768574536449,0.49795063,3299.9,3298.1,0.00392066]
[1768574537144,0.49795063,3300.5,3298.2,0.15164]
[1768574537346,0.15152,3300.9,3298.5,0.50018536]
[1768574537547,0.91187892,3300.8,3298.8,0.50018536]
[1768574537749,0.91187892,3300.7,3298.8,0.50018536]
[1768574537948,0.15149,3301.6,3299.0,0.50018536]
[1768574538151,1.06346326,3301.5,3299.2,0.1516]
[1768574538352,0.91197326,3301.4,3299.2,0.65178536]
[1768574538653,0.91197326,3301.4,3299.3,40.8]
[1768574538849,1.40992389,3301.4,3299.3,40.8]
[1768574539055,0.91197326,3301.3,3299.2,0.65178536]
[1768574539254,0.00316621,3301.7,3299.4,0.50018536]
[1768574539551,0.91132013,3301.6,3299.8,0.65175536]
[1768574539751,0.00316621,3301.7,3299.8,0.65175536]
[1768574540250,0.00316621,3301.7,3299.9,0.50018536]
[1768574540650,0.91124048,3301.6,3299.5,40.8]
[1768574540955,0.50111684,3301.7,3299.5,40.8]
[1768574541353,0.48820566,3301.6,3299.5,40.8]
[1768574541554,0.48820566,3301.4,3298.7,0.5225171]
[1768574541749,0.48820566,3300.8,3298.5,0.15163]
[1768574541950,0.91109721,3300.7,3298.5,0.15163]
[1768574542149,0.63973566,3300.8,3298.5,0.15163]
[1768574542454,1.39888795,3300.7,3298.5,0.15163]
[1768574542649,0.48820566,3300.7,3298.5,0.15163]
[1768574543243,0.48820566,3300.7,3298.5,0.6741471]
[1768574544247,0.15154,3300.5,3298.5,0.15163]
[1768574544444,0.48820566,3300.4,3298.5,0.15163]
[1768574544645,0.63975566,3300.4,3298.1,3.33192066]
[1768574544851,0.63975566,3300.4,3298.1,0.00392066]
[1768574545160,0.63975566,3300.4,3298.1,0.15557066]
[1768574545354,1.87435695,3300.2,3298.1,0.15557066]
[1768574545662,0.48820566,3300.0,3298.1,0.15557066]
[1768574545851,1.87435695,3299.7,3298.1,0.00392066]
[1768574546058,2.36256261,3299.7,3298.1,0.00392066]
[1768574546453,0.48820566,3299.6,3298.1,0.00392066]
[1768574547264,1.87435695,3299.7,3298.1,0.00392066]
[1768574547265,0.15157,3299.8,3298.1,0.00392066]
[1768574547655,0.48820566,3300.2,3298.1,0.00392066]
[1768574547856,2.36256261,3300.2,3298.1,0.00392066]
[1768574548052,0.48820566,3300.0,3298.1,0.00392066]
[1768574548256,0.63977566,3299.9,3298.1,0.00392066]
[1768574548451,0.52989833,3299.8,3298.1,0.00392066]
[1768574548660,0.1516,3299.2,3298.1,0.00392066]
[1768574548968,0.1516,3299.2,3297.3,3.032]
[1768574548969,0.68149833,3299.2,3297.3,3.032]
[1768574549268,0.68150833,3299.1,3296.8,0.15171]
[1768574549666,1.87435695,3298.7,3296.6,0.48581349]
[1768574549968,0.00288354,3298.7,3296.6,0.48887631]
[1768574550163,0.00288354,3298.7,3296.8,0.15171]
[1768574550758,0.00288354,3298.7,3296.8,0.63752349]
[1768574550958,0.00288354,3298.7,3296.9,0.48581349]
[1768574551166,0.00288354,3298.7,3297.2,0.15169]
[1768574551370,0.00288354,3298.7,3297.3,0.48581349]
[1768574552363,0.00288354,3298.7,3297.3,0.63749349]
[1768574552976,0.00288354,3298.7,3297.4,0.63749349]
[1768574553163,0.00288354,3298.7,3297.6,0.63748349]
[1768574553368,0.52989833,3300.1,3297.9,0.48581349]
[1768574553589,0.68146833,3299.9,3297.6,4.17167]
[1768574553890,0.68146833,3299.9,3297.7,0.48581349]
[1768574554186,0.68143833,3300.5,3298.1,0.48581349]
[1768574554388,0.90976787,3300.4,3298.1,0.63746349]
[1768574554687,0.90976787,3300.3,3298.1,0.63746349]
[1768574554882,0.90976787,3300.2,3298.1,0.63746349]
[1768574555082,0.68423391,3300.5,3298.1,0.63746349]
[1768574555283,0.91014738,3300.4,3298.2,0.63746349]
[1768574555485,0.91014738,3300.3,3298.6,0.48581349]
[1768574555684,0.00279558,3300.5,3298.6,0.48581349]
[1768574556091,0.53269391,3300.5,3298.0,0.48581349]
[1768574556385,1.87435695,3300.1,3298.0,3.51881349]
[1768574557087,1.87435695,3300.1,3298.0,0.48581349]
[1768574557481,0.52989833,3300.0,3298.0,0.48581349]
[1768574557676,0.52989833,3299.9,3297.8,0.15166]
[1768574557889,0.52989833,3299.9,3298.0,0.48581349]
[1768574558284,0.912485,3299.8,3298.0,0.48581349]
[1768574558483,0.52989833,3299.9,3297.9,40.95166]
[1768574558690,0.91247909,3299.8,3297.9,40.95166]
[1768574558889,0.91247239,3299.7,3297.9,0.15166]
[1768574559190,0.52989833,3299.9,3297.9,0.15166]
[1768574559392,0.91267383,3299.8,3297.9,0.15166]
[1768574559594,0.91267383,3299.8,3297.5,4.014]
[1768574559595,0.52989833,3299.6,3297.4,0.48581349]
[1768574559786,0.91267383,3299.5,3297.4,0.48581349]
[1768574559982,0.91259398,3299.4,3297.4,0.48581349]
[1768574560179,0.91274532,3299.3,3297.4,0.48581349]
[1768574560485,2.55584528,3299.4,3297.4,0.48581349]
[1768574560685,0.52989833,3299.2,3296.8,0.48581349]
[1768574560993,0.52989833,3298.8,3296.8,0.48581349]
[1768574561183,0.91273764,3298.7,3296.8,0.48581349]
[1768574561383,0.91273764,3298.6,3296.8,0.48581349]
[1768574561584,0.52989833,3298.8,3296.8,0.48581349]
[1768574561779,0.91243324,3298.7,3296.8,0.48581349]
[1768574561992,0.52989833,3299.4,3297.3,0.63750349]
[1768574562294,1.06422605,3299.3,3297.3,0.48581349]
[1768574562591,4.03542096,3299.9,3296.6,0.00306282]
[1768574562592,0.91262605,3299.2,3297.5,0.48581349]
[1768574562788,2.55582528,3299.9,3297.5,0.48581349]
[1768574562989,0.91284983,3299.8,3297.5,0.48581349]
[1768574563190,0.91284983,3299.7,3297.5,0.63749349]
[1768574563389,0.91284983,3299.6,3297.8,0.48581349]
[1768574563589,0.91284983,3299.5,3298.0,0.15165]
[1768574563786,0.52989833,3299.9,3298.0,0.15165]
[1768574563992,0.52989833,3299.7,3297.8,0.48581349]
[1768574564188,0.9130223,3299.6,3297.8,0.48581349]
[1768574564384,0.9130223,3299.5,3297.8,0.48581349]
[1768574564590,0.9130223,3299.4,3297.8,0.48581349]
[1768574564786,0.52989833,3299.7,3297.8,0.48581349]
[1768574564994,0.91307714,3299.6,3297.8,0.48581349]
[1768574565193,0.91307714,3299.5,3297.8,0.48581349]
[1768574565394,0.91307714,3299.4,3297.8,0.48581349]
[1768574565596,0.15157,3299.9,3297.8,0.48581349]
[1768574565795,0.91308465,3299.8,3297.9,40.8]
[1768574565995,0.91308465,3299.7,3297.9,41.28581349]
[1768574566194,0.91308465,3299.6,3297.9,41.43747349]
[1768574566394,0.15157,3299.9,3297.9,0.15166]
[1768574566594,0.91324386,3299.8,3298.0,0.48581349]
[1768574566797,0.15157,3299.9,3298.0,0.48581349]
[1768574567097,0.91324458,3299.8,3298.0,0.48581349]
[1768574567292,0.15157,3299.9,3298.0,0.48581349]
[1768574567484,0.91324543,3299.8,3298.0,0.48581349]
[1768574567685,0.52989833,3299.5,3297.4,0.48581349]
[1768574567885,0.52989833,3299.3,3297.3,0.15168]
[1768574568097,3.31750071,3299.2,3296.8,0.48581349]
[1768574568300,0.52989833,3299.0,3296.8,0.48581349]
[1768574568497,0.91324543,3298.9,3296.8,0.48581349]
[1768574568689,0.91324543,3298.8,3296.8,0.48581349]
[1768574568900,0.91324543,3298.8,3296.6,0.00306282]
[1768574568901,0.52989833,3298.6,3296.6,0.00306282]
[1768574569095,0.52989833,3298.1,3296.6,0.00306282]
[1768574569290,1.44314376,3298.0,3296.6,0.00306282]
[1768574569491,0.91324543,3297.9,3296.6,0.00306282]
[1768574569699,0.91324543,3297.8,3296.6,0.00306282]
[1768574569897,0.52989833,3298.0,3296.6,0.00306282]
[1768574570092,0.91258762,3297.9,3296.6,0.00306282]
[1768574570393,0.91258762,3297.8,3296.6,0.00306282]
[1768574570600,0.00212189,3298.1,3296.6,0.00306282]
[1768574570794,0.91280512,3298.0,3296.6,0.00306282]
[1768574570986,0.91280512,3297.9,3296.6,0.00306282]
[1768574571193,0.91280512,3297.8,3296.6,0.00306282]
[1768574571398,0.91280512,3297.7,3296.6,0.00306282]
[1768574571599,0.00212189,3298.1,3296.6,0.00306282]
[1768574571804,0.91311866,3298.0,3296.6,0.00306282]
[1768574571994,0.91311866,3297.9,3296.6,0.00306282]
[1768574572194,0.91311866,3297.8,3296.6,0.00306282]
[1768574572506,0.91311866,3297.7,3296.6,0.00306282]
[1768574572694,0.00212189,3298.1,3296.6,0.00306282]
[1768574572895,1.40595622,3298.0,3296.6,0.00306282]
[1768574573095,0.9129507,3297.9,3296.6,0.00306282]
[1768574573395,0.9129507,3297.8,3296.6,0.00306282]
[1768574573696,0.9129507,3297.7,3296.6,0.00306282]
[1768574573902,0.9129507,3297.6,3296.6,0.00306282]
[1768574574105,0.49300552,3298.0,3296.6,0.00306282]
[1768574574296,0.9128041,3297.9,3296.6,0.00306282]
[1768574574495,0.9128041,3297.8,3296.6,0.00306282]
[1768574574694,0.9128041,3297.7,3296.6,0.00306282]
[1768574574901,0.49300552,3298.0,3296.6,0.00306282]
[1768574575104,0.91280604,3297.9,3296.6,0.00306282]
[1768574575306,0.91280604,3297.8,3296.6,0.00306282]
[1768574575506,0.00212189,3298.1,3296.6,0.00306282]
[1768574575715,0.91274245,3298.0,3296.6,0.00306282]
[1768574576004,0.91274245,3297.9,3296.6,0.00306282]
[1768574576193,0.00212189,3298.1,3296.6,0.00306282]
[1768574576391,0.91259333,3298.0,3296.6,0.00306282]
[1768574576595,0.00212189,3298.1,3296.6,0.00306282]
[1768574576796,0.9126582,3298.0,3296.6,0.51704437]
[1768574576994,0.00212189,3298.1,3296.6,0.51704437]
[1768574577698,0.00212189,3298.1,3296.6,0.66876437]
[1768574577898,0.00212189,3298.1,3296.7,0.51398155]
[1768574578501,0.00212189,3298.1,3296.9,0.51398155]
[1768574578705,0.49300552,3299.7,3297.5,0.51398155]
[1768574579009,0.91302435,3299.6,3297.5,0.51398155]
[1768574579208,0.91302435,3299.5,3297.5,0.51398155]
[1768574579402,0.91302435,3299.4,3297.5,0.51398155]
[1768574579599,0.91302435,3299.3,3297.6,0.15167]
[1768574579813,0.91302435,3299.3,3297.8,0.51398155]
[1768574580003,0.00300614,3299.4,3297.8,0.66564155]
[1768574580208,0.91302812,3299.3,3297.2,0.66567155]
[1768574580398,0.91302812,3299.2,3297.2,3.69967155]
[1768574580601,0.49300552,3299.3,3297.2,0.66567155]
[1768574580811,2.36736247,3298.9,3296.8,3.034]
[1768574581000,0.15164,3298.4,3296.6,0.51704437]
[1768574581311,0.15164,3298.4,3296.6,0.00306282]
[1768574581312,1.40598691,3298.3,3296.6,0.00306282]
[1768574581510,1.55763691,3298.2,3296.6,0.00306282]
[1768574581696,0.91298139,3298.1,3296.6,0.00306282]
[1768574581900,2.36736247,3298.7,3296.6,0.00306282]
[1768574582102,0.91256849,3298.6,3296.6,0.00306282]
[1768574582408,0.91256849,3298.5,3296.6,0.51704437]
[1768574582708,0.64462552,3298.7,3296.6,0.66876437]
[1768574582900,0.91260609,3298.6,3296.7,0.66569155]
[1768574583102,0.64462552,3298.7,3296.7,0.66569155]
[1768574583302,0.91260302,3298.6,3296.7,0.66569155]
[1768574583613,0.91260302,3298.6,3296.6,0.00306282]
[1768574583614,3.034,3299.0,3296.8,0.66569155]
[1768574583812,0.912618,3298.9,3296.9,0.51398155]
[1768574584013,0.912618,3298.8,3296.9,0.51398155]
[1768574584213,0.912618,3298.7,3296.9,0.51398155]
[1768574584413,0.912618,3298.6,3296.9,0.51398155]
[1768574584710,0.49300552,3299.0,3296.9,0.51398155]
[1768574584911,0.91272978,3298.9,3296.9,0.51398155]
[1768574585114,0.91272978,3298.8,3296.9,0.51398155]
[1768574585312,0.91272978,3298.7,3296.9,0.51398155]
[1768574585505,0.91272978,3298.6,3296.9,0.51398155]
[1768574585706,0.49300552,3299.0,3296.9,0.51398155]
[1768574585908,0.91292276,3298.9,3296.9,0.51398155]
[1768574586111,0.91292276,3298.8,3296.9,0.51398155]
[1768574586403,0.91292276,3298.7,3296.9,0.51398155]
[1768574586611,0.91292276,3298.6,3296.9,0.66569155]
[1768574586814,0.49300552,3299.0,3296.9,0.66569155]
[1768574587113,2.36736247,3298.3,3296.6,0.00306282]
[1768574587327,0.49300552,3298.1,3296.6,0.00306282]
[1768574588213,0.15164,3298.3,3296.6,0.00306282]
[1768574588516,0.64466552,3298.0,3296.6,0.00306282]
[1768574588718,0.91377911,3297.9,3296.6,0.00306282]
[1768574589019,0.91377911,3297.8,3296.6,0.00306282]
[1768574589209,0.64466552,3298.0,3296.6,0.00306282]
[1768574589408,0.91341594,3297.9,3296.6,0.00306282]
[1768574589608,0.64463552,3298.6,3296.6,0.00306282]
[1768574589813,0.913426,3298.5,3296.6,0.00306282]
[1768574590012,0.913426,3298.4,3296.6,0.00306282]
[1768574590311,0.913426,3298.3,3296.6,0.00306282]
[1768574590606,0.913426,3298.2,3296.6,0.00306282]
[1768574590811,0.913426,3298.1,3296.6,0.00306282]
[1768574591410,0.49300552,3298.8,3296.6,0.51704437]
[1768574591618,0.9134817,3298.7,3296.6,0.51704437]
[1768574591812,1.40648722,3298.6,3296.6,0.51704437]
[1768574592010,1.40648722,3298.5,3296.6,0.51704437]
[1768574592213,0.9134817,3298.4,3296.6,0.51704437]
[1768574592409,0.49300552,3298.5,3296.6,0.51704437]
[1768574592410,0.9134817,3298.3,3296.6,0.51704437]
[1768574592610,0.9134817,3298.2,3296.6,0.51704437]
[1768574592812,0.49300552,3298.5,3296.6,0.66876437]
[1768574593013,0.91365371,3298.4,3296.7,0.51398155]
[1768574593213,0.15162,3298.7,3296.7,0.51398155]
[1768574593409,0.91383881,3298.6,3296.7,0.51398155]
[1768574593614,0.91383881,3298.5,3296.7,0.51398155]
[1768574593815,0.64462552,3298.7,3296.7,0.66569155]
[1768574594118,0.91385149,3298.6,3296.8,0.51398155]
[1768574594424,0.91385149,3298.5,3296.8,0.51398155]
[1768574594725,0.49300552,3298.3,3296.6,0.00306282]
[1768574595027,1.40699393,3298.2,3296.6,0.00306282]
[1768574595222,0.91398841,3298.1,3296.6,0.00306282]
[1768574596627,1.40699393,3298.1,3296.6,0.00306282]
[1768574596828,0.91398841,3298.0,3296.6,0.00306282]
[1768574598124,2.51898247,3298.7,3296.6,0.51704437]
[1768574598320,0.15164,3298.4,3296.6,0.00306282]
[1768574598521,0.49300552,3298.1,3296.6,0.00306282]
[1768574598724,0.91567611,3298.0,3296.6,0.00306282]
[1768574599028,0.49300552,3297.8,3296.6,0.00306282]
[1768574599218,0.91567611,3297.7,3296.6,0.00306282]
[1768574599412,0.91567611,3297.6,3296.6,0.00306282]
[1768574599624,0.49300552,3297.8,3296.6,0.00306282]
[1768574599817,0.91553609,3297.7,3296.6,0.00306282]
[1768574600018,0.91553609,3297.6,3296.6,0.00306282]
[1768574600318,0.49300552,3297.8,3296.6,0.00306282]
[1768574600525,0.91560367,3297.7,3296.6,0.00306282]
[1768574600713,0.49300552,3297.8,3296.6,0.00306282]
[1768574600917,0.91562026,3297.7,3296.6,0.00306282]
[1768574601116,0.49300552,3297.8,3296.6,0.00306282]
[1768574601312,0.91561189,3297.7,3296.6,0.00306282]
[1768574601520,0.49300552,3297.8,3296.6,0.00306282]
[1768574601724,0.91560768,3297.7,3296.6,0.00306282]
[1768574601921,0.15166,3298.0,3296.6,0.00306282]
[1768574602117,0.91561919,3297.9,3296.6,0.00306282]
[1768574602324,0.91561919,3297.8,3296.6,0.00306282]
[1768574602521,0.91561919,3297.7,3296.6,0.00306282]
[1768574602712,0.15166,3298.0,3296.6,0.00306282]
[1768574602918,0.91565069,3297.9,3296.6,0.00306282]
[1768574603117,0.91565069,3297.8,3296.6,0.00306282]
[1768574603318,0.50153122,3298.4,3296.6,0.00306282]
[1768574603518,0.9157285,3298.3,3296.6,0.00306282]
[1768574603723,0.9157285,3298.2,3296.6,0.00306282]
[1768574603923,0.9157285,3298.1,3296.6,0.00306282]
[1768574604124,0.9157285,3298.0,3296.6,0.00306282]
[1768574604318,0.9157285,3297.9,3296.6,0.00306282]
[1768574604519,0.15163,3298.6,3296.6,0.5285617]
[1768574604719,0.91603749,3298.5,3296.6,0.5285617]
[1768574604926,0.91603749,3298.4,3296.6,0.5285617]
[1768574605129,0.91603749,3298.3,3296.6,0.5285617]
[1768574605329,0.15163,3298.6,3296.6,0.5285617]
[1768574605523,1.41764172,3298.5,3296.6,0.5285617]
[1768574605728,1.41764172,3298.4,3296.6,0.00306282]
[1768574605920,1.41764172,3298.3,3296.6,0.00306282]
[1768574606115,0.9161105,3298.2,3296.6,0.00306282]
[1768574606320,6.49,3298.8,3296.9,0.52549888]
[1768574606519,0.91634774,3298.7,3296.9,0.52549888]
[1768574606830,0.91634774,3298.6,3296.9,0.52549888]
[1768574607124,0.1516,3299.2,3297.4,0.52549888]
[1768574607324,1.41780869,3299.1,3297.3,0.15169]
[1768574607523,1.41780869,3299.1,3296.6,0.00306282]
[1768574607524,0.50153122,3298.2,3296.6,0.00306282]
[1768574607832,0.91627747,3298.1,3296.6,0.00306282]
[1768574608131,0.91627747,3298.0,3296.6,0.00306282]
[1768574608425,0.15164,3298.3,3296.6,0.00306282]
[1768574608625,0.91600212,3298.2,3296.6,0.00306282]
[1768574608826,0.91600212,3298.1,3296.6,0.00306282]
[1768574609027,0.15164,3298.3,3296.6,0.00306282]
[1768574609331,0.91600464,3298.2,3296.6,0.00306282]
[1768574609519,0.91600464,3298.1,3296.6,0.00306282]
[1768574609720,0.50153122,3298.7,3296.6,0.50652502]
[1768574609921,0.91636645,3298.6,3296.6,0.50652502]
[1768574610123,0.91636645,3298.5,3296.8,0.5034622]
[1768574610331,0.15161,3299.0,3297.1,0.5034622]
[1768574610628,0.91700077,3298.9,3297.1,0.5034622]
[1768574610829,0.91700077,3298.8,3297.1,0.5034622]
[1768574611026,0.91700077,3298.7,3297.0,0.1517]